fUSD/lending_fUSD_20260601
["ID","MTS","AMOUNT","RATE_DAILY","PERIOD"]
[423692780,1780314603000,-1289.5343442,8.505e-05,2]
[423692783,1780314617000,-2450.00495115,8.404e-05,2]
[423692781,1780314617000,-1200.0,8.403e-05,2]
[423692782,1780314617000,-300.0,8.403e-05,2]
[423692788,1780314631000,-319.48963253,8.404e-05,2]
[423692789,1780314631000,-1194.33149844,8.404e-05,2]
[423692790,1780314631000,-1586.26738872,8.404e-05,2]
[423692791,1780314631000,-1267.11995351,8.404e-05,2]
[423692793,1780314632000,-5066.79958262,8.404e-05,2]
[423692792,1780314632000,-478.6087615,8.404e-05,2]
[423692795,1780314632000,-1045.3676877,8.404e-05,2]
[423692797,1780314632000,-1194776.67999629,8.404e-05,2]
[423692794,1780314632000,-2726.52883703,8.404e-05,2]
[423692798,1780314632000,-143359.860684,8.404e-05,2]
[423692800,1780314632000,-268977.89809696,8.404e-05,2]
[423692799,1780314632000,-124723.00840674,8.404e-05,2]
[423692801,1780314632000,-1254.41808677,8.404e-05,2]
[423692802,1780314632000,-1865.97484225,8.404e-05,2]
[423692796,1780314632000,-622.62168528,8.404e-05,2]
[423692811,1780314637000,-264.76194852,8.404e-05,2]
[423692818,1780314638000,-151.0,8.602e-05,2]
[423692823,1780314638000,-400.0,8.605e-05,2]
[423692824,1780314638000,-400.0,8.605e-05,2]
[423692822,1780314638000,-1500000.0,8.605e-05,2]
[423692821,1780314638000,-255.46502909,8.605e-05,2]
[423692826,1780314638000,-263.74,8.843e-05,2]
[423692816,1780314638000,-1128.3875,8.505e-05,2]
[423692828,1780314638000,-299.99,8.843e-05,2]
[423692820,1780314638000,-12222.7125616,8.605e-05,2]
[423692817,1780314638000,-250.0,8.53e-05,2]
[423692819,1780314638000,-150.0,8.604e-05,2]
[423692815,1780314638000,-748020.25795999,8.404e-05,2]
[423692825,1780314638000,-400.0,8.605e-05,2]
[423692827,1780314638000,-150.99,8.843e-05,2]
[423692829,1780314638000,-420.0,9.243e-05,2]
[423692835,1780314638000,-170.2,9.354e-05,2]
[423692831,1780314638000,-1280.0,9.255e-05,2]
[423692841,1780314638000,-4000.0,0.00010027,2]
[423692843,1780314638000,-2351.0,0.00010168,2]
[423692842,1780314638000,-587.0,0.00010168,2]
[423692839,1780314638000,-2000.0,9.539e-05,2]
[423692834,1780314638000,-170.2,9.354e-05,2]
[423692836,1780314638000,-170.2,9.354e-05,2]
[423692844,1780314638000,-4000.0,0.00010278,2]
[423692840,1780314638000,-163.58,0.0001,2]
[423692845,1780314638000,-1280.0,0.00010284,2]
[423692838,1780314638000,-3547.4,9.51e-05,2]
[423692833,1780314638000,-170.2,9.354e-05,2]
[423692832,1780314638000,-9999.99,9.255e-05,2]
[423692830,1780314638000,-1680.0,9.243e-05,2]
[423692837,1780314638000,-250.0,9.356e-05,2]
[423692882,1780314639000,-166.66,0.00012208,2]
[423692880,1780314639000,-6373.68896485,0.00012175,2]
[423692872,1780314639000,-500.0,0.00011511,2]
[423692871,1780314639000,-359889.33,0.00011457,2]
[423692873,1780314639000,-10763.24776396,0.00011562,2]
[423692875,1780314639000,-166.66,0.00011818,2]
[423692876,1780314639000,-500.0,0.0001186,2]
[423692878,1780314639000,-500.0,0.00012134,2]
[423692883,1780314639000,-213.0192041,0.00012329,2]
[423692874,1780314639000,-500.0,0.00011586,2]
[423692890,1780314639000,-10763.24776396,0.00012784,2]
[423692892,1780314639000,-500.0,0.00012877,2]
[423692885,1780314639000,-1280.0,0.0001234,2]
[423692887,1780314639000,-166.66,0.00012598,2]
[423692881,1780314639000,-1289.5343442,0.0001219,2]
[423692884,1780314639000,-284.02560544,0.00012329,2]
[423692886,1780314639000,-500.0,0.00012408,2]
[423692891,1780314639000,-6373.68896485,0.00012787,2]
[423692870,1780314639000,-500.0,0.00011312,2]
[423692894,1780314639000,-500.0,0.00012877,2]
[423692893,1780314639000,-500.0,0.00012877,2]
[423692901,1780314639000,-500.0,0.00012877,2]
[423692898,1780314639000,-500.0,0.00012877,2]
[423692888,1780314639000,-500.0,0.00012682,2]
[423692869,1780314639000,-1280.0,0.00011312,2]
[423692863,1780314639000,-10763.24776396,0.00011099,2]
[423692879,1780314639000,-10763.24776396,0.00012173,2]
[423692852,1780314639000,-500.0,0.00010958,3]
[423692853,1780314639000,-500.0,0.00010958,4]
[423692854,1780314639000,-500.0,0.00010958,5]
[423692846,1780314639000,-4000.0,0.00010529,2]
[423692850,1780314639000,-4299.20821917,0.000109,2]
[423692847,1780314639000,-215.65015035,0.000107,2]
[423692849,1780314639000,-4000.0,0.00010779,2]
[423692848,1780314639000,-2000.0,0.00010731,2]
[423692851,1780314639000,-500.0,0.00010958,2]
[423692864,1780314639000,-10763.24776396,0.00011099,2]
[423692866,1780314639000,-1222.0,0.00011185,2]
[423692865,1780314639000,-306.0,0.00011185,2]
[423692855,1780314639000,-150.0,0.00010959,2]
[423692860,1780314639000,-10763.24776398,0.00011099,2]
[423692857,1780314639000,-150.0,0.00010959,2]
[423692856,1780314639000,-4548.42,0.00010959,2]
[423692862,1780314639000,-10763.24776396,0.00011099,2]
[423692858,1780314639000,-4000.0,0.0001103,2]
[423692897,1780314639000,-500.0,0.00012877,2]
[423692861,1780314639000,-10763.24776396,0.00011099,2]
[423692859,1780314639000,-4299.20821915,0.00011038,2]
[423692867,1780314639000,-1000.0,0.00011191,2]
[423692877,1780314639000,-2000.0,0.00011924,2]
[423692868,1780314639000,-250.0,0.00011238,2]
[423692899,1780314639000,-500.0,0.00012877,2]
[423692889,1780314639000,-287.3,0.000127,2]
[423692895,1780314639000,-500.0,0.00012877,2]
[423692927,1780314639000,-500.0,0.00013054,2]
[423692930,1780314639000,-150.0,0.00013054,2]
[423692933,1780314639000,-500.0,0.00013054,2]
[423692932,1780314639000,-803.0,0.00013054,2]
[423692936,1780314639000,-500.0,0.00013054,2]
[423692935,1780314639000,-803.0,0.00013054,2]
[423692934,1780314639000,-195.43033859,0.00013054,2]
[423692937,1780314639000,-803.0,0.00013054,2]
[423692938,1780314639000,-472.95223692,0.00013054,2]
[423692939,1780314639000,-500.0,0.00013054,2]
[423692940,1780314639000,-500.0,0.00013054,2]
[423692929,1780314639000,-500.0,0.00013054,2]
[423692943,1780314639000,-500.0,0.00013054,2]
[423692941,1780314639000,-803.0,0.00013054,2]
[423692944,1780314639000,-803.0,0.00013054,2]
[423692945,1780314639000,-500.0,0.00013054,2]
[423692948,1780314639000,-803.0,0.00013054,2]
[423692896,1780314639000,-500.0,0.00012877,2]
[423692947,1780314639000,-500.0,0.00013054,2]
[423692946,1780314639000,-803.0,0.00013054,2]
[423692950,1780314639000,-803.0,0.00013054,2]
[423692949,1780314639000,-803.0,0.00013054,2]
[423692952,1780314639000,-803.0,0.00013054,2]
[423692953,1780314639000,-500.0,0.00013054,2]
[423692942,1780314639000,-803.0,0.00013054,2]
[423692928,1780314639000,-803.0,0.00013054,2]
[423692951,1780314639000,-500.0,0.00013054,2]
[423692924,1780314639000,-150.0,0.00013054,2]
[423692922,1780314639000,-150.0,0.00013054,2]
[423692900,1780314639000,-162.97877955,0.00012877,2]
[423692902,1780314639000,-500.0,0.00012877,2]
[423692903,1780314639000,-500.0,0.00012877,2]
[423692905,1780314639000,-500.0,0.00012877,2]
[423692906,1780314639000,-500.0,0.00012877,2]
[423692912,1780314639000,-385.85748912,0.00012877,2]
[423692911,1780314639000,-500.0,0.00012877,2]
[423692914,1780314639000,-166.66,0.00012988,2]
[423692907,1780314639000,-500.0,0.00012877,2]
[423692908,1780314639000,-500.0,0.00012877,2]
[423692913,1780314639000,-500.0,0.00012956,2]
[423692904,1780314639000,-500.0,0.00012877,2]
[423692910,1780314639000,-500.0,0.00012877,2]
[423692921,1780314639000,-500.0,0.00013054,2]
[423692923,1780314639000,-803.0,0.00013054,2]
[423692926,1780314639000,-803.0,0.00013054,2]
[423692916,1780314639000,-500.0,0.00013054,2]
[423692920,1780314639000,-803.0,0.00013054,2]
[423692925,1780314639000,-500.0,0.00013054,2]
[423692915,1780314639000,-500.0,0.00013054,2]
[423692917,1780314639000,-500.0,0.00013054,2]
[423692919,1780314639000,-150.0,0.00013054,2]
[423692909,1780314639000,-500.0,0.00012877,2]
[423692918,1780314639000,-500.0,0.00013054,2]
[423692976,1780314640000,-500.0,0.00013698,2]
[423692977,1780314640000,-500.0,0.00013698,2]
[423692980,1780314640000,-500.0,0.00013698,2]
[423692981,1780314640000,-500.0,0.00013698,2]
[423692979,1780314640000,-500.0,0.00013698,2]
[423692978,1780314640000,-500.0,0.00013698,2]
[423692982,1780314640000,-500.0,0.00013698,2]
[423692983,1780314640000,-500.0,0.00013698,2]
[423692985,1780314640000,-500.0,0.00013698,2]
[423692988,1780314640000,-500.0,0.00013698,2]
[423692986,1780314640000,-500.0,0.00013698,2]
[423692984,1780314640000,-500.0,0.00013698,2]
[423692994,1780314640000,-500.0,0.00013698,2]
[423692989,1780314640000,-500.0,0.00013698,2]
[423692990,1780314640000,-475.43367985,0.00013698,2]
[423692991,1780314640000,-500.0,0.00013698,2]
[423692995,1780314640000,-500.0,0.00013698,2]
[423692975,1780314640000,-574.57860626,0.00013698,2]
[423692987,1780314640000,-500.0,0.00013698,2]
[423692972,1780314640000,-500.0,0.00013589,2]
[423692961,1780314640000,-803.0,0.00013054,2]
[423692969,1780314640000,-6373.68896485,0.00013398,2]
[423692993,1780314640000,-292.16608246,0.00013698,2]
[423692959,1780314640000,-803.0,0.00013054,2]
[423692958,1780314640000,-803.0,0.00013054,2]
[423692955,1780314640000,-361.94203136,0.00013054,2]
[423692954,1780314640000,-803.0,0.00013054,2]
[423692956,1780314640000,-803.0,0.00013054,2]
[423692957,1780314640000,-803.0,0.00013054,2]
[423692960,1780314640000,-803.0,0.00013054,2]
[423692970,1780314640000,-500.0,0.00013504,2]
[423692962,1780314640000,-803.0,0.00013054,2]
[423692965,1780314640000,-163.2,0.00013189,2]
[423692966,1780314640000,-500.0,0.0001323,2]
[423692964,1780314640000,-2000.0,0.00013116,2]
[423692967,1780314640000,-284.02560544,0.00013339,2]
[423692968,1780314640000,-166.66,0.00013379,2]
[423692973,1780314640000,-163.2,0.00013652,2]
[423692974,1780314640000,-500.0,0.00013698,2]
[423692971,1780314640000,-4299.20821915,0.0001357,2]
[423692963,1780314640000,-816.25368782,0.00013054,2]
[423692997,1780314640000,-500.0,0.00013698,2]
[423693031,1780314640000,-500.0,0.00013698,2]
[423692992,1780314640000,-500.0,0.00013698,2]
[423693023,1780314640000,-1809.95,0.00013698,2]
[423693019,1780314640000,-1809.95,0.00013698,2]
[423693018,1780314640000,-1809.95,0.00013698,2]
[423693025,1780314640000,-1809.95,0.00013698,2]
[423693026,1780314640000,-1809.95,0.00013698,2]
[423693020,1780314640000,-1809.95,0.00013698,2]
[423693021,1780314640000,-1809.95,0.00013698,2]
[423693028,1780314640000,-1809.95,0.00013698,2]
[423693017,1780314640000,-1809.95,0.00013698,2]
[423693037,1780314640000,-500.0,0.00013698,2]
[423693030,1780314640000,-1809.9622324,0.00013698,2]
[423693032,1780314640000,-500.0,0.00013698,2]
[423693035,1780314640000,-500.0,0.00013698,2]
[423693033,1780314640000,-500.0,0.00013698,2]
[423693036,1780314640000,-554.38885746,0.00013698,2]
[423693034,1780314640000,-500.0,0.00013698,2]
[423693038,1780314640000,-500.0,0.00013698,2]
[423692996,1780314640000,-500.0,0.00013698,2]
[423693029,1780314640000,-1809.95,0.00013698,2]
[423693016,1780314640000,-1809.95,0.00013698,2]
[423693027,1780314640000,-1809.95,0.00013698,2]
[423693022,1780314640000,-1809.95,0.00013698,2]
[423692998,1780314640000,-500.0,0.00013698,2]
[423693024,1780314640000,-1809.95,0.00013698,2]
[423692999,1780314640000,-500.0,0.00013698,2]
[423693003,1780314640000,-500.0,0.00013698,2]
[423693004,1780314640000,-500.0,0.00013698,2]
[423693005,1780314640000,-500.0,0.00013698,2]
[423693000,1780314640000,-500.0,0.00013698,2]
[423693002,1780314640000,-500.0,0.00013698,2]
[423693006,1780314640000,-273.16118467,0.00013698,2]
[423693001,1780314640000,-500.0,0.00013698,2]
[423693014,1780314640000,-1809.95,0.00013698,2]
[423693015,1780314640000,-1809.95,0.00013698,2]
[423693007,1780314640000,-1809.95,0.00013698,2]
[423693008,1780314640000,-1809.95,0.00013698,2]
[423693012,1780314640000,-1809.95,0.00013698,2]
[423693009,1780314640000,-1809.95,0.00013698,2]
[423693011,1780314640000,-1809.95,0.00013698,2]
[423693013,1780314640000,-1809.95,0.00013698,2]
[423693010,1780314640000,-1809.95,0.00013698,2]
[423693076,1780314641000,-500.0,0.00013698,2]
[423693070,1780314641000,-500.0,0.00013698,2]
[423693068,1780314641000,-500.0,0.00013698,2]
[423693069,1780314641000,-500.0,0.00013698,2]
[423693067,1780314641000,-500.0,0.00013698,2]
[423693063,1780314641000,-500.0,0.00013698,2]
[423693062,1780314641000,-204.15869689,0.00013698,2]
[423693073,1780314641000,-500.0,0.00013698,2]
[423693066,1780314641000,-500.0,0.00013698,2]
[423693071,1780314641000,-500.0,0.00013698,2]
[423693081,1780314641000,-500.0,0.00013698,2]
[423693074,1780314641000,-500.0,0.00013698,2]
[423693075,1780314641000,-500.0,0.00013698,2]
[423693077,1780314641000,-500.0,0.00013698,2]
[423693079,1780314641000,-500.0,0.00013698,2]
[423693078,1780314641000,-500.0,0.00013698,2]
[423693080,1780314641000,-500.0,0.00013698,2]
[423693083,1780314641000,-500.0,0.00013698,2]
[423693086,1780314641000,-500.0,0.00013698,2]
[423693082,1780314641000,-502.85146207,0.00013698,2]
[423693064,1780314641000,-500.0,0.00013698,2]
[423693072,1780314641000,-500.0,0.00013698,2]
[423693065,1780314641000,-500.0,0.00013698,2]
[423693041,1780314641000,-500.0,0.00013698,2]
[423693060,1780314641000,-500.0,0.00013698,2]
[423693039,1780314641000,-500.0,0.00013698,2]
[423693040,1780314641000,-500.0,0.00013698,2]
[423693043,1780314641000,-500.0,0.00013698,2]
[423693042,1780314641000,-500.0,0.00013698,2]
[423693044,1780314641000,-500.0,0.00013698,2]
[423693047,1780314641000,-500.0,0.00013698,2]
[423693087,1780314641000,-500.0,0.00013698,2]
[423693046,1780314641000,-500.0,0.00013698,2]
[423693050,1780314641000,-500.0,0.00013698,2]
[423693048,1780314641000,-500.0,0.00013698,2]
[423693051,1780314641000,-500.0,0.00013698,2]
[423693049,1780314641000,-500.0,0.00013698,2]
[423693045,1780314641000,-500.0,0.00013698,2]
[423693052,1780314641000,-500.0,0.00013698,2]
[423693053,1780314641000,-500.0,0.00013698,2]
[423693054,1780314641000,-500.0,0.00013698,2]
[423693056,1780314641000,-500.0,0.00013698,2]
[423693058,1780314641000,-500.0,0.00013698,2]
[423693055,1780314641000,-500.0,0.00013698,2]
[423693057,1780314641000,-500.0,0.00013698,2]
[423693059,1780314641000,-500.0,0.00013698,2]
[423693061,1780314641000,-500.0,0.00013698,2]
[423693085,1780314641000,-500.0,0.00013698,2]
[423693127,1780314641000,-500.0,0.00013698,2]
[423693089,1780314641000,-500.0,0.00013698,2]
[423693115,1780314641000,-500.0,0.00013698,2]
[423693123,1780314641000,-500.0,0.00013698,2]
[423693116,1780314641000,-500.0,0.00013698,2]
[423693114,1780314641000,-500.0,0.00013698,2]
[423693120,1780314641000,-500.0,0.00013698,2]
[423693121,1780314641000,-500.0,0.00013698,2]
[423693118,1780314641000,-500.0,0.00013698,2]
[423693117,1780314641000,-500.0,0.00013698,2]
[423693119,1780314641000,-500.0,0.00013698,2]
[423693122,1780314641000,-500.0,0.00013698,2]
[423693125,1780314641000,-500.0,0.00013698,2]
[423693135,1780314641000,-500.0,0.00013698,2]
[423693126,1780314641000,-500.0,0.00013698,2]
[423693133,1780314641000,-500.0,0.00013698,2]
[423693129,1780314641000,-500.0,0.00013698,2]
[423693128,1780314641000,-500.0,0.00013698,2]
[423693124,1780314641000,-500.0,0.00013698,2]
[423693130,1780314641000,-500.0,0.00013698,2]
[423693131,1780314641000,-500.0,0.00013698,2]
[423693132,1780314641000,-500.0,0.00013698,2]
[423693134,1780314641000,-500.0,0.00013698,2]
[423693113,1780314641000,-500.0,0.00013698,2]
[423693112,1780314641000,-500.0,0.00013698,2]
[423693084,1780314641000,-500.0,0.00013698,2]
[423693108,1780314641000,-500.0,0.00013698,2]
[423693100,1780314641000,-500.0,0.00013698,2]
[423693088,1780314641000,-500.0,0.00013698,2]
[423693090,1780314641000,-500.0,0.00013698,2]
[423693094,1780314641000,-500.0,0.00013698,2]
[423693093,1780314641000,-500.0,0.00013698,2]
[423693092,1780314641000,-500.0,0.00013698,2]
[423693091,1780314641000,-500.0,0.00013698,2]
[423693098,1780314641000,-500.0,0.00013698,2]
[423693099,1780314641000,-500.0,0.00013698,2]
[423693097,1780314641000,-500.0,0.00013698,2]
[423693095,1780314641000,-500.0,0.00013698,2]
[423693103,1780314641000,-500.0,0.00013698,2]
[423693110,1780314641000,-500.0,0.00013698,2]
[423693107,1780314641000,-500.0,0.00013698,2]
[423693101,1780314641000,-500.0,0.00013698,2]
[423693111,1780314641000,-500.0,0.00013698,2]
[423693105,1780314641000,-500.0,0.00013698,2]
[423693102,1780314641000,-500.0,0.00013698,2]
[423693109,1780314641000,-500.0,0.00013698,2]
[423693104,1780314641000,-500.0,0.00013698,2]
[423693106,1780314641000,-500.0,0.00013698,2]
[423693096,1780314641000,-500.0,0.00013698,2]
[423693175,1780314642000,-536.75,0.00013698,2]
[423693166,1780314642000,-536.75,0.00013698,2]
[423693167,1780314642000,-536.75,0.00013698,2]
[423693163,1780314642000,-500.0,0.00013698,2]
[423693164,1780314642000,-536.75,0.00013698,2]
[423693160,1780314642000,-500.0,0.00013698,2]
[423693162,1780314642000,-500.0,0.00013698,2]
[423693176,1780314642000,-500.0,0.00013698,2]
[423693165,1780314642000,-536.75,0.00013698,2]
[423693171,1780314642000,-536.75,0.00013698,2]
[423693181,1780314642000,-536.75,0.00013698,2]
[423693172,1780314642000,-536.75,0.00013698,2]
[423693170,1780314642000,-536.75,0.00013698,2]
[423693169,1780314642000,-536.75,0.00013698,2]
[423693173,1780314642000,-536.75,0.00013698,2]
[423693174,1780314642000,-536.75,0.00013698,2]
[423693177,1780314642000,-536.75,0.00013698,2]
[423693179,1780314642000,-536.75,0.00013698,2]
[423693183,1780314642000,-166.66,0.00013699,2]
[423693185,1780314642000,-21398.84,0.00013699,2]
[423693161,1780314642000,-500.0,0.00013698,2]
[423693168,1780314642000,-536.75,0.00013698,2]
[423693155,1780314642000,-500.0,0.00013698,2]
[423693147,1780314642000,-500.0,0.00013698,2]
[423693159,1780314642000,-500.0,0.00013698,2]
[423693182,1780314642000,-536.75,0.00013698,2]
[423693137,1780314642000,-500.0,0.00013698,2]
[423693139,1780314642000,-500.0,0.00013698,2]
[423693138,1780314642000,-500.0,0.00013698,2]
[423693136,1780314642000,-500.0,0.00013698,2]
[423693140,1780314642000,-500.0,0.00013698,2]
[423693141,1780314642000,-500.0,0.00013698,2]
[423693143,1780314642000,-500.0,0.00013698,2]
[423693142,1780314642000,-500.0,0.00013698,2]
[423693144,1780314642000,-500.0,0.00013698,2]
[423693145,1780314642000,-500.0,0.00013698,2]
[423693146,1780314642000,-500.0,0.00013698,2]
[423693148,1780314642000,-500.0,0.00013698,2]
[423693151,1780314642000,-500.0,0.00013698,2]
[423693149,1780314642000,-500.0,0.00013698,2]
[423693150,1780314642000,-500.0,0.00013698,2]
[423693152,1780314642000,-500.0,0.00013698,2]
[423693153,1780314642000,-500.0,0.00013698,2]
[423693157,1780314642000,-500.0,0.00013698,2]
[423693154,1780314642000,-500.0,0.00013698,2]
[423693158,1780314642000,-500.0,0.00013698,2]
[423693156,1780314642000,-500.0,0.00013698,2]
[423693180,1780314642000,-536.75,0.00013698,2]
[423693186,1780314642000,-354.74978975,0.00013699,2]
[423693178,1780314642000,-536.75,0.00013698,2]
[423693222,1780314642000,-246.927505,0.00014553,2]
[423693220,1780314642000,-160.0,0.00014553,2]
[423693230,1780314642000,-2000.0,0.00014557,2]
[423693219,1780314642000,-151.0,0.00014501,2]
[423693223,1780314642000,-500.0,0.00014556,2]
[423693221,1780314642000,-203.463752,0.00014553,2]
[423693224,1780314642000,-536.75,0.00014556,2]
[423693229,1780314642000,-2000.0,0.00014557,2]
[423693225,1780314642000,-2000.0,0.00014557,2]
[423693226,1780314642000,-2000.0,0.00014557,2]
[423693215,1780314642000,-500.0,0.00014326,2]
[423693232,1780314642000,-2000.0,0.00014557,2]
[423693231,1780314642000,-2000.0,0.00014557,2]
[423693234,1780314642000,-2000.0,0.00014557,2]
[423693238,1780314642000,-2000.0,0.00014557,2]
[423693237,1780314642000,-2000.0,0.00014557,2]
[423693239,1780314642000,-2000.0,0.00014557,2]
[423693240,1780314642000,-2000.0,0.00014557,2]
[423693235,1780314642000,-2000.0,0.00014557,2]
[423693236,1780314642000,-2000.0,0.00014557,2]
[423693187,1780314642000,-891.02,0.000137,2]
[423693241,1780314642000,-2000.0,0.00014557,2]
[423693233,1780314642000,-2000.0,0.00014557,2]
[423693212,1780314642000,-18500.3430377,0.00014201,2]
[423693228,1780314642000,-2000.0,0.00014557,2]
[423693213,1780314642000,-166.66,0.00014247,2]
[423693188,1780314642000,-166.66,0.00013769,2]
[423693216,1780314642000,-284.02560544,0.00014348,2]
[423693190,1780314642000,-339.693814,0.00013825,2]
[423693202,1780314642000,-166.66,0.00013973,2]
[423693191,1780314642000,-166.66,0.00013836,2]
[423693184,1780314642000,-200.0,0.00013699,2]
[423693189,1780314642000,-500.0,0.00013778,2]
[423693192,1780314642000,-500.0,0.00013855,2]
[423693204,1780314642000,-40182.55971291,0.0001399,2]
[423693198,1780314642000,-500.0,0.00013855,2]
[423693199,1780314642000,-278.69889731,0.00013855,2]
[423693206,1780314642000,-250.0,0.00014,2]
[423693193,1780314642000,-500.0,0.00013855,2]
[423693195,1780314642000,-500.0,0.00013855,2]
[423693208,1780314642000,-1023542.4073919,0.00014107,2]
[423693209,1780314642000,-6014.0259827,0.00014107,2]
[423693207,1780314642000,-6373.68896485,0.0001401,2]
[423693218,1780314642000,-200.0,0.00014386,2]
[423693211,1780314642000,-163.2,0.00014114,2]
[423693210,1780314642000,-166.66,0.0001411,2]
[423693217,1780314642000,-166.66,0.00014384,2]
[423693214,1780314642000,-2000.0,0.00014308,2]
[423693282,1780314643000,-160.0,0.00014796,2]
[423693283,1780314643000,-377.0,0.00014797,2]
[423693279,1780314643000,-352.0,0.00014795,2]
[423693287,1780314643000,-2000.0,0.00014826,2]
[423693278,1780314643000,-392.0,0.00014783,2]
[423693266,1780314643000,-1506.23,0.00014557,2]
[423693270,1780314643000,-379.0,0.0001474,2]
[423693272,1780314643000,-383.0,0.00014741,2]
[423693273,1780314643000,-1000.0,0.00014752,2]
[423693274,1780314643000,-157.78966585,0.00014753,2]
[423693277,1780314643000,-391.0,0.00014781,2]
[423693288,1780314643000,-2000.0,0.00014826,2]
[423693293,1780314643000,-391.0,0.00014835,2]
[423693284,1780314643000,-379.0,0.00014825,2]
[423693281,1780314643000,-209.21103511,0.00014796,2]
[423693286,1780314643000,-2000.0,0.00014826,2]
[423693289,1780314643000,-2000.0,0.00014826,2]
[423693298,1780314643000,-500.0,0.0001489,2]
[423693290,1780314643000,-2000.0,0.00014826,2]
[423693299,1780314643000,-500.0,0.0001489,2]
[423693291,1780314643000,-1953.74,0.00014826,2]
[423693292,1780314643000,-150.0,0.00014826,2]
[423693294,1780314643000,-112788.3198868,0.0001485,2]
[423693295,1780314643000,-500.0,0.00014874,2]
[423693271,1780314643000,-391.0,0.0001474,2]
[423693285,1780314643000,-2000.0,0.00014826,2]
[423693276,1780314643000,-381.0,0.00014775,2]
[423693254,1780314643000,-414.95,0.00014557,2]
[423693267,1780314643000,-163.2,0.00014577,2]
[423693296,1780314643000,-25000.0,0.00014882,3]
[423693242,1780314643000,-2000.0,0.00014557,2]
[423693244,1780314643000,-2000.0,0.00014557,2]
[423693252,1780314643000,-2000.0,0.00014557,2]
[423693243,1780314643000,-2000.0,0.00014557,2]
[423693253,1780314643000,-2000.0,0.00014557,2]
[423693248,1780314643000,-2000.0,0.00014557,2]
[423693249,1780314643000,-2000.0,0.00014557,2]
[423693251,1780314643000,-2000.0,0.00014557,2]
[423693250,1780314643000,-2000.0,0.00014557,2]
[423693247,1780314643000,-2000.0,0.00014557,2]
[423693246,1780314643000,-2000.0,0.00014557,2]
[423693269,1780314643000,-391.0,0.00014735,2]
[423693245,1780314643000,-2000.0,0.00014557,2]
[423693258,1780314643000,-2000.0,0.00014557,2]
[423693259,1780314643000,-2000.0,0.00014557,2]
[423693257,1780314643000,-2000.0,0.00014557,2]
[423693264,1780314643000,-2000.0,0.00014557,2]
[423693265,1780314643000,-2000.0,0.00014557,2]
[423693262,1780314643000,-2000.0,0.00014557,2]
[423693263,1780314643000,-2000.0,0.00014557,2]
[423693256,1780314643000,-2000.0,0.00014557,2]
[423693260,1780314643000,-2000.0,0.00014557,2]
[423693261,1780314643000,-2000.0,0.00014557,2]
[423693275,1780314643000,-391.0,0.00014769,2]
[423693268,1780314643000,-500.0,0.000146,2]
[423693255,1780314643000,-2000.0,0.00014557,2]
[423693297,1780314643000,-379.0,0.00014889,2]
[423693280,1780314643000,-396.0,0.00014796,2]
[423693302,1780314643000,-536.75,0.0001489,2]
[423693330,1780314643000,-706.35379325,0.00015,2]
[423693333,1780314643000,-3551.0,0.0001528,2]
[423693335,1780314643000,-165.205,0.0001528,2]